[Event "VII GM Barcelona CC 2022"]
[Site "Barcelona"]
[Date "2022.05.12"]
[Round "5.4"]
[White "Movsziszian, Karen"]
[Black "Del Prado Rodriguez, Xulio"]
[Result "1-0"]
[ECO "A36"]
[WhiteElo "2467"]
[BlackElo "2326"]
[Annotator "TA"]
[PlyCount "85"]
[EventDate "2022.05.10"]
[EventType "tourn"]
[EventCountry "ESP"]
[SourceTitle "playchess.com"]
[Source "ChessBase"]
[SourceQuality "1"]
[TimeControl "5400+30"]

{[%evp 9,85,0,12,0,0,0,0,0,0,0,0,0,0,0,0,0,19,-12,-5,-15,-16,-14,0,-5,0,-2,0,0,16,0,17,-30,-34,-46,-13,0,0,0,49,49,60,44,39,48,84,71,151,133,127,99,140,122,132,138,192,200,195,196,172,168,179,181,526,526,494,502,2720,2310,1210,1191,29970,29956,5518,598,29985,29976,29969,29967]} 1. g3 {[%emt 0:00:03]} c5 {[%emt 0:00:15]} 2. c4 {[%emt 0:00:46]} g6 {[%emt 0:00:29]} 3. Bg2 {[%emt 0:00:06]} Bg7 {[%emt 0:00:07]} 4. Nc3 {[%emt 0:00:03]} Nc6 {[%emt 0:00:20]} 5. d3 {[%emt 0:00:07]} d6 {[%emt 0:01:08]} 6. Qd2 {[%emt 0:00:02] A36: Symmetrical English vs ...g6: 4 Bg2 Bg7.} e5 {[%emt 0:06:00]} 7. b3 {[%emt 0:00:09]} Nge7 {[%emt 0:00:18]} 8. Bb2 {[%emt 0:00:01] The position is equal.} O-O {[%emt 0:00:55]} 9. h4 {[%emt 0:00:04]} h5 {[%emt 0:03:26] [#]} 10. Nf3 $146 {[%emt 0:00:38]} ({Predecessor:} 10. Nh3 Rb8 11. O-O a6 12. Kh2 Nf5 13. Ne4 Bd7 14. e3 b5 15. Rad1 b4 16. Ra1 {1-0 (44) Ivanisevic,I (2618)-Borisek,J (2584) Slovenia 2019}) 10... Rb8 {[%emt 0:05:18]} 11. O-O {[%emt 0:01:07]} a6 {[%emt 0:03:54]} 12. e3 {[%emt 0:00:32]} b5 {[%emt 0:05:59]} 13. Ne4 {[%emt 0:02:36]} Bf5 {[%emt 0:05:26]} 14. Nh2 {[%emt 0:01:58]} Qd7 {[%emt 0:02:17]} 15. Qe2 {[%emt 0:02:11]} b4 {[%emt 0:17:16]} 16. Rac1 {[%emt 0:04:31]} a5 {[%emt 0:02:02]} (16... Bh3 {keeps more tension.} 17. Bxh3 Qxh3 18. Nf3 Rfd8) 17. f3 {[%emt 0:00:03]} Bxe4 {[%emt 0:14:38]} 18. dxe4 {[%emt 0:02:40]} f5 {[%emt 0:06:27]} 19. Bh3 {[%emt 0:01:31]} Qc7 {[%emt 0:00:28]} 20. Rfd1 {[%emt 0:21:06]} (20. exf5 $142 Nxf5 21. Bxf5 Rxf5 22. Rcd1) 20... f4 $11 {[%emt 0:06:31]} 21. Nf1 {[%emt 0:01:04]} fxe3 {[%emt 0:00:47]} 22. Nxe3 {[%emt 0:00:08]} Nd4 {[%emt 0:05:16]} 23. Bxd4 {[%emt 0:00:10]} exd4 {[%emt 0:00:11]} (23... cxd4 $11 24. Nd5 Qa7) 24. Nd5 $14 {[%emt 0:01:32]} Nxd5 {[%emt 0:00:10]} 25. Be6+ {[%emt 0:03:24]} Kh8 {[%emt 0:00:59]} 26. cxd5 {[%emt 0:00:08]} Qe7 {[%emt 0:06:19][%cal Oa5a4]} 27. f4 {[%emt 0:00:13]} Bh6 {[%emt 0:01:07]} ({Black should try} 27... Ra8) 28. Rc2 {[%emt 0:01:38]} a4 {[%emt 0:00:50]} 29. Rf1 {[%emt 0:03:02] White is more active.} ({Resist} 29. bxa4 $6 Ra8 $14) 29... axb3 {[%emt 0:00:24]} 30. axb3 {[%emt 0:00:01]} Ra8 {[%emt 0:00:42]} 31. Kg2 {[%emt 0:01:30]} Ra3 {[%emt 0:01:14]} (31... Qg7 $16) 32. Qd3 $18 {[%emt 0:00:18]} Kg7 {[%emt 0:01:48]} 33. Rcf2 {[%emt 0:00:54]} Qa7 {[%emt 0:00:23][%cal Oa7a4]} 34. e5 {[%emt 0:53:14]} dxe5 35. fxe5 Ra2 $2 {[#]} (35... Rxf2+ {is more resistant.} 36. Rxf2 Ra2) 36. Rxa2 Qxa2+ 37. Kh3 {White wants to mate with Rxf8.} Rf2 (37... Qd2 $142 38. Qxd2 Bxd2) 38. Rxf2 Qxf2 {[#]} 39. d6 $1 {White threatens d7 and mate.} g5 40. hxg5 Bxg5 41. Bd5 (41. Qf5 $142 Qxf5+ 42. Bxf5) 41... Qe3 42. Qxe3 dxe3 43. Bc4 {Weighted Error Value: White=0.29 (precise) /Black=0.49} 1-0

[Event "VII GM Barcelona CC 2022"]
[Site "Barcelona"]
[Date "2022.05.12"]
[Round "5.5"]
[White "Sosa, Tomas"]
[Black "Roshka, Yevgeniy"]
[Result "1/2-1/2"]
[ECO "B40"]
[WhiteElo "2552"]
[BlackElo "2468"]
[Annotator "TA"]
[PlyCount "68"]
[EventDate "2022.05.10"]
[EventType "tourn"]
[EventCountry "ESP"]
[SourceTitle "playchess.com"]
[Source "ChessBase"]
[SourceQuality "1"]
[TimeControl "5400+30"]

{[%evp 12,68,20,15,26,12,32,6,18,14,22,19,31,26,24,0,0,0,5,0,32,34,27,4,7,0,31,0,0,39,118,103,104,104,112,112,104,114,121,108,125,67,83,0,0,0,0,0,0,0,0,0,0,0,0,0,0,0,0]} 1. e4 {[%emt 0:13:14]} c5 {[%emt 0:00:26]} 2. Nf3 {[%emt 0:00:29]} e6 {[%emt 0:00:11]} 3. d4 {[%emt 0:00:06]} cxd4 {[%emt 0:00:04]} 4. Nxd4 {[%emt 0:00:07]} Bc5 {[%emt 0:00:03]} 5. Nb3 {[%emt 0:04:39]} Bb6 {[%emt 0:00:49]} 6. Nc3 {[%emt 0:00:31]} Ne7 {[%emt 0:00:07][%cal Bg8e7,Be7f5,Bf5d4,Bd4b3][%mdl 32]} 7. Bd3 {[%emt 0:00:59]} Nbc6 {[%emt 0:01:47] B40: Sicilian: 2...e6, Unusual lines.} 8. Bf4 {[%emt 0:01:33]} O-O {[%emt 0:00:41] [#]} 9. Qd2 $146 {[%emt 0:01:46]} ({Predecessor:} 9. Qf3 d6 10. Qg3 e5 11. Bh6 Ng6 12. Bg5 f6 13. Bc4+ Kh8 14. Bd2 a6 15. O-O-O {0-1 (34) Rozman,M (2141)-Mohr,G (2454) Slovenia 2018}) 9... f5 {[%emt 0:01:12]} 10. exf5 {[%emt 0:07:20]} Nxf5 {[%emt 0:01:57]} 11. O-O-O {[%emt 0:00:52]} d5 {[%emt 0:05:30]} 12. Rhe1 {[%emt 0:00:13] Against e5} Nfd4 {[%emt 0:04:50]} 13. Bg5 {[%emt 0:12:20][%cal Bf4g5,Bg5h4,Bh4g3][%mdl 32]} Nxb3+ $1 {[%emt 0:01:48]} 14. axb3 {[%emt 0:00:17]} Qd6 {[%emt 0:00:24]} 15. Bh4 {[%emt 0:13:45]} Qb4 {[%emt 0:07:47]} (15... Qxh2 $2 16. Bxh7+ $1 Kh8 17. Rh1 $18) 16. Bg3 {[%emt 0:00:09]} Bd7 {[%emt 0:00:25]} 17. Qg5 {[%emt 0:03:00][%cal Oc3d5]} Rf7 $1 {[%emt 0:06:30]} (17... g6 $2 18. Nxd5 (18. Bxg6 Qe7 $18) 18... Bd8 19. Qxd8 (19. Nxb4 Bxg5+ 20. f4 Rxf4 $16) 19... Rfxd8 20. Nxb4 Nxb4 21. Bc4 $18) 18. Nb5 {[%emt 0:06:19]} Qa5 {[%emt 0:07:05] Threatens to win with ...Bd8.} 19. Nd6 {[%emt 0:01:23][%csl LRb7,LRf7]} (19. c3 $5 {[%cal Rb5d6]}) 19... Rf6 $1 {[%emt 0:00:29] Hoping for ...e5.} (19... Qa1+ 20. Kd2 Qa5+ 21. c3 $16) 20. c3 {[%emt 0:05:01]} Raf8 {[%emt 0:06:19]} (20... Bxf2 $14 21. Nxb7 Qa2 22. Bxf2 Rxf2) 21. Kb1 {[%emt 0:01:33] White is much more active.} (21. Nxb7 $6 Qa2 $11) 21... Bxf2 {[%emt 0:06:41]} 22. Bxf2 {[%emt 0:00:40]} (22. Nxb7 $2 Qb6 23. Bxf2 Rxf2 $19) 22... Rxf2 {[%emt 0:00:02]} 23. Qh5 $1 {[%emt 0:00:18][%csl Gd3][%cal Rh5h7]} h6 {[%emt 0:00:10]} (23... g6 $2 24. Bxg6 $1 R8f6 25. Qxh7+ Kf8 26. Nxb7 $18) 24. Qg6 {[%emt 0:00:30][%csl Gd3][%cal Rg6h7]} R8f6 {[%emt 0:00:10]} 25. Qh7+ {[%emt 0:00:05]} Kf8 {[%emt 0:00:02]} 26. Bg6 {[%emt 0:03:08] Dancing on a razor blade.} (26. Nxb7 Qb6 27. Nd6 (27. Qh8+ $2 Kf7 $19) 27... Qb8 $17) (26. Qh8+ Ke7 27. Nc8+ (27. Nxb7 Qb6 $17) 27... Bxc8 28. Qxc8 Nd8 $11) ({White should play} 26. Bc2 $1 $16) 26... Qb6 $1 $14 {[%emt 0:06:41] [#] Strongly threatening ...Ne7.} 27. Rxd5 $40 {[%emt 0:09:58][%mdl 128] White attacks.} Rxg6 $11 {[%emt 0:04:07] The position is equal.} 28. Rf5+ $1 {[%emt 0:00:31]} (28. Rb5 $2 {[#]} Qc7 $1 29. Qh8+ (29. Qxg6 $2 {loses.} Qxd6 30. Ka2 Ne7 $19) 29... Ke7 30. Nf5+ Rxf5 $1 {[%mdl 512]} 31. Rxf5 Qc8 32. Qxc8 Bxc8 $19) 28... Rxf5 {[%emt 0:01:14]} 29. Qh8+ {[%emt 0:00:13]} Ke7 {[%emt 0:00:01]} 30. Nxf5+ {[%emt 0:00:09]} Kf7 $1 {[%emt 0:00:50]} 31. Nd6+ {[%emt 0:00:05]} Ke7 {[%emt 0:00:04] White must now prevent ...Qf2.} 32. Nf5+ $1 {[%emt 0:00:14]} Kf7 {[%emt 0:01:03]} 33. Nd6+ {[%emt 0:00:24]} Ke7 {[%emt 0:00:20] ...Qf2 is the strong threat.} 34. Nf5+ $1 {[%emt 0:00:17]} Kf7 $1 {[%emt 0:00:56] Weighted Error Value: White=0.13 (very precise) /Black=0.08 (flawless)} 1/2-1/2

[Event "VII GM Barcelona CC 2022"]
[Site "Barcelona"]
[Date "2022.05.13"]
[Round "6.1"]
[White "Pajeken, Jakob Leon"]
[Black "Roshka, Yevgeniy"]
[Result "0-1"]
[ECO "A43"]
[WhiteElo "2398"]
[BlackElo "2468"]
[Annotator "TA"]
[PlyCount "90"]
[EventDate "2022.05.10"]
[EventType "tourn"]
[EventCountry "ESP"]
[SourceTitle "playchess.com"]
[Source "ChessBase"]
[SourceQuality "1"]
[TimeControl "5400+30"]

{[%evp 16,90,24,31,28,0,12,0,33,17,55,43,58,29,31,31,24,18,2,-81,-102,-71,-42,-39,5,-7,24,8,2,0,2,6,6,-16,-15,-79,-8,-22,-20,-20,-26,-31,0,-8,0,-6,-2,-6,-15,-35,-47,-47,0,-21,-30,-168,-162,-166,-149,-379,-368,-494,-478,-636,-610,-675,-650,-586,-365,-357,-346,-589,-586,-3350,-3161,-1631,-1339]} 1. d4 {[%emt 1:31:00]} Nf6 {[%emt 0:07:23]} 2. Nf3 {[%emt 0:00:00]} c5 {[%emt 0:00:14]} 3. d5 {[%emt 0:00:00]} e6 {[%emt 0:01:00]} 4. Nc3 {[%emt 0:00:00]} exd5 {[%emt 0:02:31]} 5. Nxd5 {[%emt 0:00:00]} Nxd5 {[%emt 0:00:06]} 6. Qxd5 {[%emt 0:00:00]} Be7 {[%emt 0:04:25]} 7. e4 {[%emt 0:00:00]} O-O {[%emt 0:00:27]} 8. Bc4 {[%emt 0:00:00]} d6 {[%emt 0:00:20]} 9. O-O {[%emt 0:00:00]} Nd7 {[%emt 0:00:13] [#] A43: Schmid Benoni.} 10. Be2 $146 {[%emt 0:00:00]} ({Predecessor:} 10. Qd3 Nb6 11. Bb3 Bg4 12. Bf4 Bxf3 13. gxf3 Rc8 14. Bc4 Qd7 15. Rfd1 Qh3 16. Bg3 Rfd8 17. c3 {1-0 (67) Annaberdiev,M (2509)-Rasulov,V (2538) Marmaris 2018}) 10... Nb6 {[%emt 0:03:17]} 11. Qh5 {[%emt 0:00:00]} f5 {[%emt 0:05:00] The position is equal.} 12. e5 {[%emt 0:00:00]} d5 {[%emt 0:01:58]} 13. a4 {[%emt 0:00:00]} a5 {[%emt 0:04:29]} 14. Rd1 {[%emt 0:00:00]} Bd7 {[%emt 0:03:18]} 15. b3 {[%emt 0:00:00]} Qe8 {[%emt 0:01:47]} 16. Qxe8 {[%emt 0:00:00]} Rfxe8 {[%emt 0:00:11]} 17. Bb5 {[%emt 0:00:00]} (17. Bb2 $11) 17... Bxb5 $17 {[%emt 0:07:09]} 18. axb5 {[%emt 0:00:00]} Ra7 {[%emt 0:00:06]} 19. c3 {[%emt 0:00:00][%cal Ob3b4]} Rd8 {[%emt 0:09:33]} 20. Ng5 {[%emt 0:00:00]} Raa8 {[%emt 0:19:55]} 21. Ne6 {[%emt 0:00:00]} Rdc8 {[%emt 0:01:01]} 22. Nf4 {[%emt 0:00:00]} c4 {[%emt 0:01:09]} 23. Be3 {[%emt 0:00:00]} Bc5 {[%emt 0:00:40]} 24. Bxc5 {[%emt 0:00:00]} Rxc5 {[%emt 0:00:02]} 25. b4 {[%emt 0:00:00] [#]} (25. bxc4 $11 {remains equal.} dxc4 26. Rd6 Rxb5 27. Ne6 Rxe5 28. Rxb6) 25... Rxb5 {[%emt 0:02:37]} (25... axb4 $1 $17 {Strongly threatening ...Rxa1.} 26. Rxa8+ Nxa8 27. cxb4 Rxb5 28. Nxd5 Nb6 29. Ne7+ Kf7 30. Nxf5 Rxb4) 26. Rxa5 {[%emt 0:00:00]} Raxa5 {[%emt 0:00:19]} 27. bxa5 {[%emt 0:00:00]} Rxa5 {[%emt 0:02:42][%mdl 4096] Endgame KRN-KRN} 28. h4 {[%emt 0:00:00]} Rb5 {[%emt 0:02:02]} (28... d4 $5 29. cxd4 Nd5 30. Nxd5 Rxd5 $15) 29. Ra1 {[%emt 0:00:00]} Kf7 {[%emt 0:01:08][%cal Od5d4]} 30. Ra7 {[%emt 0:02:26]} Nc8 {[%emt 0:00:10]} 31. Ra8 $1 {[%emt 0:00:26]} Ne7 {[%emt 0:00:37]} 32. Rd8 {[%emt 0:02:50]} Rb1+ {[%emt 0:03:55]} 33. Kh2 {[%emt 0:00:07]} Rd1 {[%emt 0:00:01]} (33... Rc1 $15 34. Rd7 Rxc3 35. Rxb7 Rb3) 34. Rd7 {[%emt 0:02:30]} b5 {[%emt 0:02:49][%cal Bb7b5,Bb5b4][%mdl 32]} 35. Rb7 {[%emt 0:00:12]} (35. Kg3 $11 {and White stays safe.}) 35... d4 $19 {[%emt 0:04:51]} 36. cxd4 {[%emt 0:00:41]} Rxd4 {[%emt 0:00:17]} 37. Kg3 {[%emt 0:00:57] Now White is beyond hope.} (37. g3 $17 {is a better defense.}) 37... b4 {[%emt 0:02:02] White must now prevent ...c3.} 38. e6+ {[%emt 0:01:55]} Kf6 {[%emt 0:00:22]} 39. Nh5+ {[%emt 0:00:33]} Kxe6 {[%emt 0:00:01] Threatens to win with ...c3.} 40. Nxg7+ {[%emt 0:00:26]} Kf6 {[%emt 0:00:02] ...c3 is the strong threat.} 41. Nh5+ {[%emt 0:00:37]} Kg6 {[%emt 0:00:14]} 42. Nf4+ {[%emt 0:02:49] [#]} Kf7 $1 {[%emt 0:00:04] Hoping for ...c3.} 43. Kf3 $2 {[%emt 0:00:06]} (43. Ne2 Rd2 44. Rxb4 Rxe2 45. Rxc4) 43... c3 {[%emt 0:01:19] Black is clearly winning.} 44. Rc7 {[%emt 0:00:38] [#]} Rxf4+ $1 {[%emt 0:02:51][%mdl 512]} 45. Kxf4 {[%emt 0:00:05]} (45. Ke2 Rxh4) 45... b3 {[%emt 0:00:01] Weighted Error Value: White=0.60/Black=0.17 (very precise)} 0-1

[Event "VII GM Barcelona CC 2022"]
[Site "Barcelona"]
[Date "2022.05.13"]
[Round "6.2"]
[White "Del Prado Rodriguez, Xulio"]
[Black "Sosa, Tomas"]
[Result "1/2-1/2"]
[ECO "A41"]
[WhiteElo "2326"]
[BlackElo "2552"]
[Annotator "TA"]
[PlyCount "101"]
[EventDate "2022.05.10"]
[EventType "tourn"]
[EventCountry "ESP"]
[SourceTitle "playchess.com"]
[Source "ChessBase"]
[SourceQuality "1"]
[TimeControl "5400+30"]

{[%evp 9,101,26,40,17,27,13,18,20,19,-16,38,35,54,45,62,27,54,20,30,12,30,29,27,24,47,34,41,31,31,19,15,15,17,10,8,0,0,0,14,14,22,7,24,25,51,41,31,-75,-75,-60,0,-11,0,-116,-111,-88,0,0,0,0,0,0,0,0,0,0,0,0,0,0,0,0,0,0,0,-3,-3,-3,-3,-3,0,0,0,0,0,0,0,0,0,0,0,0,0,0]} 1. d4 {[%emt 0:00:05]} d6 {[%emt 0:05:41]} 2. Nf3 {[%emt 0:00:52]} Bg4 {[%emt 0:02:19]} 3. c4 {[%emt 0:08:24]} Bxf3 {[%emt 0:05:10]} 4. exf3 {[%emt 0:02:55]} g6 {[%emt 0:00:19]} 5. Be2 {[%emt 0:06:21]} Bg7 {[%emt 0:00:37]} 6. O-O {[%emt 0:00:22] A41: 1 d4 d6: Tartakower System and Modern Defence.} e6 {[%emt 0:01:41]} 7. Nc3 {[%emt 0:13:16]} Ne7 {[%emt 0:00:54] [#]} 8. Re1 $146 {[%emt 0:03:53]} ({Predecessor:} 8. d5 e5 9. f4 Nd7 10. fxe5 Nxe5 11. Bg5 h6 12. Bh4 Nd7 13. f4 Nf6 14. Bd3 {1-0 (27) Dalinger,V (2350)-Lorenz,G (2321) Germany 2005}) 8... O-O {[%emt 0:01:30]} 9. Bf1 {[%emt 0:00:17]} h6 {[%emt 0:09:15]} ({Black should try} 9... d5 $11) 10. d5 $14 {[%emt 0:02:14]} exd5 {[%emt 0:00:23]} 11. Nxd5 {[%emt 0:03:01]} Nxd5 {[%emt 0:01:47]} 12. Qxd5 {[%emt 0:54:50]} c6 {[%emt 0:03:30]} 13. Qd2 {[%emt 0:00:00]} Na6 {[%emt 0:10:53]} 14. Rb1 {[%emt 0:00:00]} Qd7 {[%emt 0:03:38]} 15. b3 {[%emt 0:00:00]} Rfe8 {[%emt 0:02:38]} 16. Ba3 {[%emt 0:00:00]} Rxe1 {[%emt 0:03:12]} 17. Rxe1 {[%emt 0:00:00]} Rd8 {[%emt 0:01:01]} 18. Rd1 {[%emt 0:00:00][%cal Rd2d6]} c5 {[%emt 0:11:31]} 19. g3 {[%emt 0:00:00]} b6 {[%emt 0:02:30]} 20. f4 {[%emt 0:00:00]} Nc7 {[%emt 0:01:21]} 21. Bg2 {[%emt 0:00:00]} Qf5 {[%emt 0:01:20]} 22. Bb2 {[%emt 0:00:00]} Ne6 {[%emt 0:03:01]} 23. Bd5 {[%emt 0:00:00]} Nc7 {[%emt 0:06:39]} 24. Bxg7 {[%emt 0:00:00]} Kxg7 {[%emt 0:00:08]} 25. Kg2 {[%emt 0:00:28]} Qf6 {[%emt 0:05:05]} 26. Re1 {[%emt 0:02:22]} a6 {[%emt 0:04:08]} 27. Re3 {[%emt 0:02:02]} Re8 {[%emt 0:01:41]} 28. Qe2 {[%emt 0:00:55]} (28. Rd3 $14 {keeps the upper hand.}) 28... Rxe3 $17 {[%emt 0:00:52]} 29. fxe3 {[%emt 0:00:01][%mdl 4096] Endgame KQB-KQN} Qc3 {[%emt 0:01:04]} (29... Nxd5 $15 30. cxd5 Qc3) 30. e4 {[%emt 0:00:35]} b5 {[%emt 0:01:13]} 31. Qf3 {[%emt 0:00:30]} (31. Bb7 $11 {keeps the balance.}) 31... Qa1 {[%emt 0:03:55]} 32. Qe2 {[%emt 0:00:15]} bxc4 {[%emt 0:00:31]} ({Black should play} 32... Nxd5 $17 33. exd5 (33. cxd5 Qd4 $15) 33... bxc4 34. bxc4 Qc1) 33. Bxc4 $11 {[%emt 0:00:45] The position is equal.} Nb5 {[%emt 0:01:33]} 34. Bxb5 {[%emt 0:00:46]} axb5 {[%emt 0:00:01]} 35. Qxb5 {[%emt 0:01:32]} Qxa2+ {[%emt 0:00:05] KQ-KQ} 36. Kh3 {[%emt 0:00:57]} Qc2 {[%emt 0:02:01]} 37. Qc4 {[%emt 0:00:15]} Qd2 {[%emt 0:03:06]} 38. e5 {[%emt 0:00:05]} dxe5 {[%emt 0:00:27]} 39. Qxc5 {[%emt 0:00:01]} Qd7+ {[%emt 0:00:40]} 40. Kg2 $1 {[%emt 0:00:39]} Qb7+ {[%emt 0:00:18]} 41. Kf2 {[%emt 0:00:01]} exf4 {[%emt 0:01:19]} 42. Qc3+ {[%emt 0:00:03]} Kh7 {[%emt 0:00:17]} 43. gxf4 {[%emt 0:00:01]} Qh1 {[%emt 0:00:12]} 44. Qg3 {[%emt 0:00:04]} h5 {[%emt 0:00:48]} 45. f5 {[%emt 0:02:17]} gxf5 {[%emt 0:01:05]} 46. Qh3 {[%emt 0:00:01][%csl LRf5,LRh5]} Kh6 {[%emt 0:00:50]} 47. Qe3+ {[%emt 0:00:08]} Kh7 {[%emt 0:01:00]} 48. Qh3 {[%emt 0:00:03][%csl LRf5,LRh5]} Kh6 {[%emt 0:00:18]} 49. Qe3+ {[%emt 0:00:06]} Kg6 {[%emt 0:00:17]} 50. Qg3+ {[%emt 0:00:02]} Kh7 {[%emt 0:00:52]} 51. Qh3 {[%emt 0:04:36][%csl LRf5,LRh5] Weighted Error Value: White=0.15 (very precise) /Black=0.10 (very precise)} 1/2-1/2

[Event "VII GM Barcelona CC 2022"]
[Site "Barcelona"]
[Date "2022.05.13"]
[Round "6.3"]
[White "Munoz, Miguel"]
[Black "Movsziszian, Karen"]
[Result "1/2-1/2"]
[ECO "B07"]
[WhiteElo "2421"]
[BlackElo "2467"]
[Annotator "TA"]
[PlyCount "23"]
[EventDate "2022.05.10"]
[EventType "tourn"]
[EventCountry "ESP"]
[SourceTitle "playchess.com"]
[Source "ChessBase"]
[SourceQuality "1"]
[TimeControl "5400+30"]

{[%evp 20,23,-17,-21,98,15]} 1. e4 {[%emt 0:12:30] ChessBase II} d6 {[%emt 0:00:06]} 2. d4 {[%emt 0:00:09]} Nf6 {[%emt 0:00:07]} 3. Nc3 {[%emt 0:00:08]} g6 {[%emt 0:00:08]} 4. Bg5 {[%emt 0:00:22]} Bg7 {[%emt 0:01:23]} 5. e5 {[%emt 0:00:29]} dxe5 {[%emt 0:00:05]} 6. dxe5 {[%emt 0:00:07]} Ng4 {[%emt 0:00:21]} 7. Qxd8+ {[%emt 0:00:59]} Kxd8 {[%emt 0:00:02]} 8. Rd1+ {[%emt 0:00:30]} Bd7 {[%emt 0:00:50]} 9. e6 {[%emt 0:00:19]} fxe6 {[%emt 0:00:02]} 10. Bc4 {[%emt 0:00:17]} Ke8 {[%emt 0:00:41]} 11. Nf3 {[%emt 0:00:18] [#]} Bc8 $146 {[%emt 1:32:15] B07: Pirc Defence: Miscellaneous Systems.} (11... Nc6 $11 {keeps the balance.}) ({Predecessor:} 11... Nc6 12. O-O Nge5 13. Nxe5 Nxe5 14. Bb3 Nf7 15. Bf4 Nd6 16. Rfe1 Bxc3 17. bxc3 Rf8 18. Bg3 Rd8 19. Bxe6 Bxe6 20. Rxe6 {0-1 (38) Belkhodja,S (2488)-Hamdouchi,H (2575) France 2006 CBM 111 Extra [ChessBase II]}) 12. Nb1 (12. Bf4 $16) 1/2-1/2

[Event "VII GM Barcelona CC 2022"]
[Site "Barcelona"]
[Date "2022.05.13"]
[Round "6.4"]
[White "Rodriguez Lopez, Rafael"]
[Black "Gonzalez Perez, Arian"]
[Result "0-1"]
[ECO "B04"]
[WhiteElo "2176"]
[BlackElo "2415"]
[Annotator "TA"]
[PlyCount "70"]
[EventDate "2022.05.10"]
[EventType "tourn"]
[EventCountry "ESP"]
[SourceTitle "playchess.com"]
[Source "ChessBase"]
[SourceQuality "1"]
[TimeControl "5400+30"]

{[%evp 10,70,42,23,29,33,28,0,3,0,4,0,13,-4,0,0,0,-12,-19,-14,-7,-28,1,-1,0,0,17,0,50,-35,-32,-87,-95,-90,-76,-86,-91,-133,-156,-126,-114,-319,-288,-293,-273,-356,-271,-268,-279,-279,-275,-268,-263,-570,-579,-899,-908,-904,-900,-826,-837,-764,-697]} 1. e4 {[%emt 0:00:02]} Nf6 {[%emt 0:05:17]} 2. e5 {[%emt 0:00:12]} Nd5 {[%emt 0:00:04]} 3. d4 {[%emt 0:00:06]} d6 {[%emt 0:00:04]} 4. Nf3 {[%emt 0:00:05]} dxe5 {[%emt 0:00:04]} 5. Nxe5 {[%emt 0:00:05]} c6 {[%emt 0:00:03]} 6. Be2 {[%emt 0:00:21]} Bf5 {[%emt 0:00:07] B04: Alekhine's Defence: 4 Nf3.} 7. a3 {[%emt 0:01:43]} Nd7 {[%emt 0:00:48]} 8. Nxd7 {[%emt 0:01:03]} Qxd7 {[%emt 0:00:10] The position is equal.} 9. c4 {[%emt 0:00:26]} Nf6 {[%emt 0:00:18] [#]} 10. Nc3 $146 {[%emt 0:01:08]} ({Predecessor:} 10. Be3 e6 11. O-O Bd6 12. Nd2 O-O 13. h3 Rad8 14. Nf3 Qc7 15. Qb3 b6 16. Rad1 {½-½ (70) Nahornyi,I (1469)-Agafonov,Y (2134) Albena 2017}) 10... e6 {[%emt 0:00:13]} 11. h3 {[%emt 0:00:25]} Rd8 {[%emt 0:07:09]} 12. Be3 {[%emt 0:00:06]} Bd6 {[%emt 0:01:17]} 13. g4 {[%emt 0:06:35]} Bg6 {[%emt 0:00:34]} 14. Bf3 {[%emt 0:03:53]} h6 {[%emt 0:12:04]} 15. Qe2 {[%emt 0:00:39]} Qc7 {[%emt 0:02:59]} 16. O-O-O {[%emt 0:07:32]} Qa5 {[%emt 0:03:03][%cal Od6a3] aiming for ...Bxa3!} 17. c5 {[%emt 0:01:16]} Be7 {[%emt 0:03:22]} 18. h4 {[%emt 0:00:11]} Nd5 {[%emt 0:01:31]} (18... h5 $1 $11) 19. Nxd5 {[%emt 0:03:43]} ({White should play} 19. Bxd5 $14 cxd5 20. f4) 19... cxd5 $15 {[%emt 0:00:14]} 20. g5 {[%emt 0:01:26]} ({Better is} 20. h5 $15 Bh7 21. Qd2) 20... h5 $1 $17 {[%emt 0:01:05]} 21. Qd2 {[%emt 0:02:40]} Qa4 {[%emt 0:03:16]} 22. Qc3 {[%emt 0:00:13]} b6 {[%emt 0:01:30]} 23. b4 {[%emt 0:02:13] [#]} (23. c6 $2 Rc8 24. Kd2 (24. c7 $2 Bd6 $19) 24... Rxc6 $19) 23... bxc5 $1 {[%emt 0:07:53]} 24. dxc5 {[%emt 0:00:26]} a5 $1 $40 {[%emt 0:00:31][%mdl 128] Hoping for ...axb4. Black attacks with force.} 25. Kb2 $2 {[%emt 0:02:12] Now White is beyond hope.} (25. Rd4 $17 {was worth a try.}) 25... axb4 $19 {[%emt 0:07:54]} 26. axb4 {[%emt 0:01:21]} (26. Qxb4 Qc2+ 27. Ka1 O-O $19) 26... Rb8 {[%emt 0:00:12]} (26... Ra8 27. Ra1 Qc6 28. Rxa8+ Qxa8 29. Qxg7 $18) 27. Bd2 {[%emt 0:01:00] [#]} Rxb4+ $3 {[%emt 0:13:50][%mdl 512]} 28. Qxb4 {[%emt 0:00:15]} Qc2+ {[%emt 0:00:04]} 29. Ka1 {[%emt 0:00:53] White wants to mate with Qb5+.} O-O {[%emt 0:00:09] Chess con chili.} 30. Qa5 {[%emt 0:01:37]} (30. Qa3 {leads to mate.} Bxc5 31. Bxd5 Bxa3 32. Rb1 exd5 33. Rb7 Bc5 34. Rh3 Bd4+) 30... Rb8 {[%emt 0:11:44][%csl Gb8][%cal Rc2b2]} 31. Bc3 {[%emt 0:00:52] [#] Prevents Qb2+.} (31. Bb4 {was the crucial defense.} Bxc5 32. Rd2 (32. Qxc5 $2 Ra8+ 33. Qa5 Rxa5+ 34. Bxa5 Qa4+ 35. Kb2 Qb5+ 36. Kc3 Qxa5+ 37. Kd4 Qa7+ 38. Kc3 Qa3+ 39. Kd4 Qxf3 $19) 32... Bxb4 33. Rxc2 Bxa5 34. Rcc1) 31... Bd8 $1 {[%emt 0:02:04] Black is clearly winning.} 32. Rc1 {[%emt 0:05:26]} Rb1+ {[%emt 0:01:03]} 33. Rxb1 {[%emt 0:00:19]} Bxa5 {[%emt 0:00:02]} 34. Rb8+ {[%emt 0:01:23]} Kh7 {[%emt 0:00:06]} 35. Bxa5 {[%emt 0:00:06]} Qxc5 {[%emt 0:00:51] Weighted Error Value: White=0.57/Black=0.06 (flawless)} 0-1